Workbook

Sheet Documentation
B1: Note from Cyclotron Road
B2: This model accompanies the screencast series 'Techonomics - Introduction to Cost Modeling in Excel'. The purpose of the series is to (1) educate innovators about cost modeling and (2) provide templates to help innovators start developing their own models. The best practices and techniques demonstrated are realistic, however, the exact numbers and example chemical/manufacturing processes may not be.
B3: This model was developed by Chris Burk of Burk Engineering LLC. Chris is a chemical engineer and an independent consultant. He works with companies that are developing or investing in new process-related technologies - helping them connect science, engineering, and business through techno-economic modeling.
B4: Chris Burk PE | cburk@BurkEngineeringLLC.com | www.BurkEngineeringLLC.com
A5: Documentation
B6: This page provides information about the model - including important cost estimation techniques, important assumptions, and model structure.
B8: 1. Model info
B9: Name | C9: SuperSpin 2.0 - Techno-economic model
B10: Purpose | C10: To evaluate Plastic Co.'s improved SuperSpin polymer synthesis process for further R&D and scale-up investment.
B11: Version | C11: 1.3
B12: Date | C12: 2018-05-19
B13: Primary developer | C13: J. Doe / Plastic Co. / jdoe@PlasticCo.com
B14: Checked/approved by | C14: R. Doe / Plastic Co.
B15: User input modification | C15: All user input cells are shaded grey. Users should feel free to modify these values, however, entering certain values or combinations of values may result in unrealistic results. The user should contact the developer if they have concerns about the validity of input values or results.
B20: 2. Technology modeling approach
B21: Key innovation(s) | C21: Polymerization catalyst, Reactor
B22: State of development | C22: TRL 5 - Complete process has been demonstrated at the laboratory scale.
B23: Process description | C23: Monomer gas, hydrogen gas, and solid catalyst are the only raw materials for the process. Monomer and hydrogen gas are fed to a reactor which is at elevated temperature and pressure (approx. 80C and 5bar). The reactor contains a fluidized bed of catalyst particles. The monomer and hydrogen react to form solid polymer, which is continuously removed from the bottom of the reactor. Unreacted monomer and hydrogen are continuously recycled using a compressor. A water-cooled heat exchanger on the recycle line removes excess heat from compression. Downstream of the reactor, the polymer product is separated from any remaining monomer and hydrogen.
B24: Important assumptions | C24: Energy for heating monomer, hydrogen, and catalyst feed streams is provided by heat produced by the polymerization reaction. Recycle stream leaves heat exchanger at reactor temperature. It is unnecessary to separate remaining solid catalyst from product. All hydrogen feed reacts. (Polymer length is controlled by the amount of hydrogen fed to reactor.) Monomer supply, hydrogen supply, catalyst supply, and product storage are available on site.
B29: 3. CapEx estimation approach
B30: Scope of estimate | C30: Estimate includes installation of the process plant at an exiting facility, which already has auxiliary buildings, utilities, raw material supply, and product storage available.
B31: Method | C31: Factored major equipment cost estimate based on material balance
B32: Expected accuracy | C32: - 30% to +40%
B33: References | C33: Quote for Reactor Vessel from fabricator (#123456) Cost breakdown data from construction of SuperSpin 1.0 Plant in 2014 Plant Design and Economics for Chemical Engineers (Fifth Edition), by Peters, Timmerhaus, and West
B38: 4. OpEx estimation approach
B39: Method | C39: Factored estimate based on material balance and CapEx
B40: Expected accuracy | C40: - 30% to +40%
B41: References | C41: Vendor quotes for monomer, hydrogen, and catalyst raw materials Operating data for existing SuperSpin 1.0 Plant Plant Design and Economics for Chemical Engineers (Fifth Edition), by Peters, Timmerhaus, and West
B46: 5. Overall model structure

Sheet Dashboard
A1: Techno-economic model - Polymer synthesis
B2: This is a model for a new super-polymer synthesis method.
B4: Process parameters | H4: Financial results
B5: Production rate | E5: 500 | F5: t/yr | H5: CapEx | J5: =Total_Capital/10^6 -> 2.455934575 | K5: MM
B6: Utilization | E6: 0.95 | H6: OpEx less depreciation | J6: =OpEx_without_depr/Production_Rate/10^3 -> 3.58227383 | K6: /kg product
B7: Overall conversion (reactor yield) | E7: 0.95 | F7: of monomer | H7: Revenue | J7: =Revenue/Production_Rate/10^3 -> 7 | K7: /kg product
B8: Separation yield | E8: 0.98 | H8: =IF(EqCapacityRangeCheck,"( Equipment size is within cost correlation range. )","Warning: Equipment size is outside cost correlation range.") -> ( Equipment size is within cost correlation range. )
B11: Reaction parameters | H11: Profitability metrics
B12: Single pass conversion | E12: 0.04 | F12: of monomer | H12: All-in cost | J12: =OpEx_with_depr/Production_Rate/10^3 -> 4.009392886 | K12: /kg product
B13: Catalyst dosing | E13: 0.001 | F13: kg/kg monomer | H13: Payback period | J13: =SimplePayback -> 2.756283334 | K13: years
B14: Reactor pressure | E14: 5 | F14: bar
B15: Reactor pressure drop | E15: 1 | F15: bar
B18: Costs
B19: Polymer product | E19: 7000 | F19: /t
B20: Catalyst | E20: 1150 | F20: /t
B21: Monomer | E21: 1050 | F21: /t
B22: Hydrogen | E22: 2100 | F22: /t
B23: Electrical power | E23: 0.11 | F23: /kWh
B24: Cost per operator | E24: 72000 | F24: /yr

Sheet Tornado
A1: Tornado diagram sensitivity analysis
H4: Settings | I4: Worst | J4: Expected | K4: Best | L4: Units | M4: Reference
H5: =Dashboard!B6 -> Utilization | I5: 0.9 | J5: 0.95 | K5: 0.98 | L5: - | M5: =Dashboard!E6 -> 0.95
H6: Overall conversion | I6: 0.9 | J6: 0.95 | K6: 0.97 | L6: of monomer | M6: =Dashboard!E7 -> 0.95
H7: =Dashboard!B8 -> Separation yield | I7: 0.95 | J7: 0.98 | K7: 0.99 | L7: - | M7: =Dashboard!E8 -> 0.98
H8: =Dashboard!B12 -> Single pass conversion | I8: 0.03 | J8: 0.04 | K8: 0.07 | L8: =Dashboard!F12 -> of monomer | M8: =Dashboard!E12 -> 0.04
H9: =Dashboard!B13 -> Catalyst dosing | I9: 0.0015 | J9: 0.001 | K9: 0.0008 | L9: kg/kg monomer | M9: =Dashboard!E13 -> 0.001
H10: =Dashboard!B14 -> Reactor pressure | I10: 4 | J10: 5 | K10: 5.5 | L10: bar | M10: =Dashboard!E14 -> 5
H11: Polymer price | I11: 13500 | J11: 14100 | K11: 14600 | L11: /t | M11: =Dashboard!E19 -> 7000
H12: Monomer price | I12: 1155 | J12: 1050 | K12: 945 | L12: /t | M12: =Dashboard!E21 -> 1050
H13: Catalyst price | I13: 2310 | J13: 2100 | K13: 1890 | L13: /t | M13: =Dashboard!E22 -> 2100
H14: Operator cost | I14: 76000 | J14: 74000 | K14: 72000 | L14: /yr | M14: =Dashboard!E24 -> 72000
I18: Metric: | J18: All-in cost , $/kg
H21: User instructions:
H22: 1. In 'Settings' table, enter best-case, expected-case, and worst-case values for each parameter.
H23: 2. Select output metric from drop down menu below table.
H24: 3. Click 'Refresh Tornado' button.
H25: 4. Customize chart format if desired.
A39: Software Copyright 2017 Burk Engineering LLC
G49: Tornado data & settings
H51: Results | I51: Reference | J51: Higher = better
H52: NPV, MMUSD | I52: =NPV -> 3.55756672 | J52: 1
H53: IRR | I53: =IRR -> 0.362245235 | J53: 1
H54: Total capital, MMUSD | I54: =Dashboard!J5 -> 2.455934575 | J54: 0
H55: Simple payback, years | I55: =Dashboard!J13 -> 2.756283334 | J55: 1
H56: All-in cost , $/kg | I56: =Dashboard!J12 -> 4.009392886 | J56: 0
H59: Use: Index | I59: =MATCH(J18,$H$52:$H$57,0) -> 5
H60: Value | I60: =INDEX($I$52:$I$57,I59) -> 4.009392886
H61: Format | I61: =CELL("format",INDEX($I$52:$I$57,I59)) -> C2-
H63: Metric | I63: Higher = better | J63: Reference
H64: =J18 -> All-in cost , $/kg | I64: =INDEX(J52:J57,MATCH(T_Metric,H52:H57,0)) -> 0 | J64: =Tornado!I60 -> 4.009392886
H65: Input | I65: Low | J65: High
H66: Polymer price | I66: 4.067175495 | J66: 4.067175495
H67: Catalyst price | I67: 4.067177358 | J67: 4.067173632
H68: Catalyst dosing | I68: 4.067846811 | J68: 4.066906969
H69: Utilization | I69: 4.094697308 | J69: 4.05182637
H70: Separation yield | I70: 4.121625924 | J70: 4.049729283
H71: Operator cost | I71: 4.124958104 | J71: 4.009392886
H72: Overall conversion | I72: 4.16707856 | J72: 4.027005818
H73: Reactor pressure | I73: 4.181669399 | J73: 4.023917648
H74: Monomer price | I74: 4.189763596 | J74: 3.944587394
H75: Single pass conversion | I75: 4.218547008 | J75: 3.848762562

Sheet Process model
A1: Process model
B2: This page uses user input and material balance calculations to develop a stream table for the polymer synthesis process.
B5: General process parameters | G5: Important rates
B6: Production rate | D6: =Dashboard!E5 -> 500 | E6: t/yr | G6: Product | I6: =I89/kg_per_t*s_per_yr -> 500 | J6: t/yr
B7: Overall conversion | D7: =Dashboard!E7 -> 0.95 | E7: of monomer | G7: Catalyst | I7: =I90/kg_per_t*s_per_yr -> 0.5370526316 | J7: t/yr
B8: Separation yield | D8: =Dashboard!E8 -> 0.98 | G8: Monomer | I8: =I91/kg_per_t*s_per_yr -> 537.0526316 | J8: t/yr
G9: Hydrogen | I9: =I92/kg_per_t*s_per_yr -> 0.0040816 | J9: t/yr
B10: Reaction parameters | G10: Recycle rate | I10: =H64/kg_per_t*s_per_yr -> 12217.94737 | J10: t/yr
B11: Temperature | D11: 80 | E11: degC
B12: Pressure | D12: =Dashboard!E14 -> 5 | E12: bar
B13: Polymer length | D13: 5000 | E13: monomer units | G13: Process results
B14: Catalyst dosing | D14: =Dashboard!E13 -> 0.001 | E14: kg/kg monomer | G14: Overall yield | I14: =Conv_Overall*Product_Loss -> 0.931
B15: Single pass conversion | D15: =Dashboard!E12 -> 0.04 | E15: of monomer
B17: Pressure drop
B18: Reactor | D18: =Dashboard!E15 -> 1 | E18: bar
B19: Heat exchanger | D19: 0.8 | E19: bar
A25: Process flow diagram
A44: Stream table / material balance
B47: Stream | E47: 1 | F47: 2 | G47: 3 | H47: 4 | I47: 5 | J47: 6 | K47: 7 | L47: 8 | M47: 9
B48: Description | D48: - | E48: Catalyst feed | F48: Monomer feed | G48: Hydrogen feed | H48: Recycle A | I48: Recycle B | J48: Recycle return | K48: Raw product | L48: Vent to flare | M48: Product
B49: In / Out | D49: - | E49: in | F49: in | G49: in | L49: out | M49: out
B50: Phase | D50: - | E50: solid | F50: gas | G50: gas | H50: gas | I50: gas | J50: gas | K50: solid & gas | L50: gas | M50: solid
B52: Temperature | D52: K | E52: =T_ambient -> 298 | F52: =T_ambient -> 298 | G52: =T_ambient -> 298 | H52: =T_Reactor -> 353.15 | I52: ='Equipment sizing'!D72 -> 392.7031221 | J52: =H52 -> 353.15 | K52: =T_Reactor -> 353.15 | L52: =K52 -> 353.15 | M52: =L52 -> 353.15
B53: Pressure | D53: bar | E53: =J53 -> 5 | F53: =J53 -> 5 | G53: =J53 -> 5 | H53: =P_Reactor-$D$18 -> 4 | I53: =J53+D19 -> 5.8 | J53: =P_Reactor -> 5 | K53: =D84 -> 1.5 | L53: =P_ambient -> 1 | M53: =P_ambient -> 1
B55: Gas volume flow rate | D55: m3/s | E55: =SUM(E60:E61)*Constant_R*E52/E53 -> 0 | F55: 0.001687792639 | G55: 3.206806014e-07 | H55: =SUM(H60:H61)*Constant_R*H52/H53 -> 0.05687919601 | I55: 0.04362049507 | J55: 0.04550335681 | K55: 0.0003333579253 | L55: 0.000500036888 | M55: 0
B58: Mole flow rate | D58: kmol/s | E58: =SUM(E59:E62) -> 1.702982723e-07 | F58: 0.0003405965447 | G58: 6.471334348e-08 | H58: 0.007748571391 | I58: 0.007748571391 | J58: 0.007748571391 | K58: 1.726483885e-05 | L58: 1.720141977e-05 | M58: 6.341907661e-08
B59: Catalyst | E59: =E65/MW_catalyst -> 1.702982723e-07 | K59: =E59 -> 1.702982723e-07 | L59: =K59 -> 1.702982723e-07
B60: Monomer | F60: =-I82/Conv_Overall -> 0.0003405965447 | H60: =I60 -> 0.007748571391 | I60: =J60 -> 0.007748571391 | J60: =-I82/Conv_SinglePass-F60 -> 0.007748571391 | K60: =F60+I82 -> 1.702982723e-05 | L60: =K60 -> 1.702982723e-05
B61: Hydrogen | G61: =-I83 -> 6.471334348e-08
B62: Polymer | K62: =M62/Product_Loss -> 6.471334348e-08 | L62: =K62-M62 -> 1.29426687e-09 | M62: =D82 -> 6.341907661e-08
B64: Mass flow rate | D64: kg/s | E64: =SUM(E65:E68) -> 1.702982723e-05 | F64: 0.01702982723 | G64: 1.29426687e-07 | H64: 0.3874285695 | I64: 0.3874285695 | J64: 0.3874285695 | K64: 0.01704698649 | L64: 0.001192090495 | M64: 0.01585489599
B65: Catalyst | E65: =F66*Catalyst_dosing_rate -> 1.702982723e-05 | K65: =K59*MW_catalyst -> 1.702982723e-05 | L65: =L59*MW_catalyst -> 1.702982723e-05
B66: Monomer | F66: =F60*MW_monomer -> 0.01702982723 | H66: =H60*MW_monomer -> 0.3874285695 | I66: =I60*MW_monomer -> 0.3874285695 | J66: =J60*MW_monomer -> 0.3874285695 | K66: =K60*MW_monomer -> 0.0008514913616 | L66: =L60*MW_monomer -> 0.0008514913616
B67: Hydrogen | G67: =G61*MW_H2 -> 1.29426687e-07
B68: Polymer | K68: =K62*MW_polymer -> 0.0161784653 | L68: =L62*MW_polymer -> 0.000323569306 | M68: =M62*MW_polymer -> 0.01585489599
B70: Mass balances checks | E70: Reactor: | F70: =SUM(H64,K64)-SUM(E64,F64,G64,J64) -> 0 | H70: Separator: | I70: =SUM(L64,M64)-K64 -> 0 | K70: Overall: | L70: =SUM(L64,M64)-SUM(E64,F64,G64) -> 0
A77: Calculations
B80: General | G80: Reaction rates
B81: Production rate | D81: =D6*kg_per_t/s_per_yr -> 0.01585489599 | E81: kg/s | G81: Polymer | I81: =D82/Product_Loss -> 6.471334348e-08 | J81: kmol/s
D82: =D81/MW_polymer -> 6.341907661e-08 | E82: kmol/s | G82: Monomer | I82: =-I81*Length_Polymer -> -0.0003235667174 | J82: kmol/s
B83: Reactor temperature | D83: =D11+273.15 -> 353.15 | E83: K | G83: Hydrogen | I83: =-I81 -> -6.471334348e-08 | J83: kmol/s
B84: Separation pressure | D84: 1.5 | E84: bar
B88: Molecular weights | G88: Important flow rates
B89: Catalyst | D89: 100 | E89: g/mol | G89: Product | I89: =M64 -> 0.01585489599 | J89: kg/s
B90: Monomer | D90: 50 | E90: g/mol | G90: Catalyst | I90: =E64 -> 1.702982723e-05 | J90: kg/s
B91: Hydrogen | D91: 2 | E91: g/mol | G91: Monomer | I91: =F64 -> 0.01702982723 | J91: kg/s
B92: Polymer | D92: =MW_monomer*Length_Polymer+MW_H2 -> 250002 | E92: g/mol | G92: Hydrogen | I92: =G64 -> 1.29426687e-07 | J92: kg/s

Sheet Equipment sizing
A1: Equipment sizing
B2: This page uses values from the stream table to calculate the parameters necessary for estimating equipment and utility costs.
B4: Summary | E4: Reactor | F4: Compressor | G4: Heat exchanger | H4: Separation vessel
B5: Capacity parameter | D5: - | E5: Volume | F5: Power | G5: Area | H5: Volume
B6: Capacity units | D6: - | E6: m3 | F6: kW | G6: m2 | H6: m3
B7: Capacity | D7: - | E7: =D36 -> 23.84411122 | F7: =D60 -> 13.41162492 | G7: =I60 -> 7.757116393 | H7: =I36 -> 1.263251085
B9: Electrical power | D9: kW-h/yr | F9: =D76 -> 117485.8343
B10: Cooling water | D10: t/yr | G10: =I70 -> 12980.99124
B31: Reactor sizing | G31: Separation vessel sizing
B32: Residence time | D32: 8 | E32: min | G32: Residence time | I32: 60 | J32: min
B33: Gas flow rate | D33: =SUM('Process model'!E55,'Process model'!F55,'Process model'!G55,'Process model'!J55)/Utilization -> 0.04967523171 | E33: m3/s | G33: Gas flow rate | I33: ='Process model'!K55/Utilization -> 0.0003509030793 | J33: m3/s
B35: Results summary | G35: Calculations
B36: Vessel volume | D36: =D41 -> 23.84411122 | E36: m3 | G36: Vessel volume | I36: =I41 -> 1.263251085 | J36: m3
B37: Pressure | D37: =P_Reactor -> 5 | E37: bar | G37: Pressure | I37: ='Process model'!K53 -> 1.5 | J37: bar
B39: Calculations | G39: Calculations
B40: Residence time | D40: =D32*s_per_min -> 480 | E40: s | G40: Residence time | I40: =I32*s_per_min -> 3600 | J40: s
B41: Reactor volume | D41: =D33*D40 -> 23.84411122 | E41: m3 | G41: Reactor volume | I41: =I33*I40 -> 1.263251085 | J41: m3
B51: Compressor sizing | G51: Heat exchanger sizing
B52: Efficiency | D52: 0.7 | E52: - | G52: Cooling water supply temp. | I52: 303 | J52: K
B53: Heat capacity ratio, γ | D53: 1.4 | E53: - | G53: Cooling water return temp. | I53: 318 | J53: K
B54: Inlet volume rate | D54: ='Process model'!H55/Utilization -> 0.0598728379 | E54: m3/s | G54: Flow rate | I54: ='Process model'!I58/Utilization -> 0.008156390938 | J54: kmol/s
B55: Inlet temperature | D55: ='Process model'!H52 -> 353.15 | E55: K | G55: Temperature in | I55: ='Process model'!I52 -> 392.7031221 | J55: K
B56: Inlet pressure | D56: ='Process model'!H53 -> 4 | E56: bar | G56: Temperature out | I56: ='Process model'!J52 -> 353.15 | J56: K
B57: Outlet pressure | D57: ='Process model'!I53 -> 5.8 | E57: bar
B59: Results summary | G59: Results summary
B60: Electrical power | D60: =D75 -> 13.41162492 | E60: kW | G60: Capacity | I60: =I78 -> 7.757116393 | J60: m2
G61: Cooling water flow | I61: =I69 -> 0.411624532 | J61: kg/s
B63: Power calculation | G63: Cooling water flow rate calculation
B64: Inlet volume rate | D64: =D54 -> 0.0598728379 | E64: m3/s | G64: Process heat capacity | I64: 80 | J64: kJ/(kmol-K)
B65: Inlet pressure | D65: =D56*kPa_per_bar -> 400 | E65: kPa | G65: Process temperature change | I65: =I55-I56 -> 39.55312213 | J65: K
B66: Outlet pressure | D66: =D57*kPa_per_bar -> 580 | E66: kPa | G66: Cooling duty | I66: =I54*I64*I65 -> 25.80885815 | J66: kW
G67: Cooling water heat capacity | I67: 4.18 | J67: kJ/(kg-K)
B68: Compression ratio | D68: =D66/D65 -> 1.45 | E68: - | G68: Cooling water temp. change | I68: =I53-I52 -> 15 | J68: K
B69: γ/(γ-1) | D69: =D53/(D53-1) -> 3.5 | G69: Cooling water flow rate | I69: =I66/Cp_H2O/I68 -> 0.411624532 | J69: kg/s
I70: =I69/kg_per_t*s_per_yr -> 12980.99124 | J70: t/yr
B71: Inlet temperature | D71: =D55 -> 353.15 | E71: K
B72: Outlet temperature | D72: =D71*D68^(1/D69) -> 392.7031221 | E72: K | G72: Heat transfer area calculation
G73: Temp. change, side 1 | I73: =I55-I53 -> 74.70312213 | J73: K
B74: Fluid power | D74: =D54*D65*D69*(D68^(1/D69)-1) -> 9.388137443 | E74: kW | G74: Temp. change, side 2 | I74: =I56-I52 -> 50.15 | J74: K
B75: Electrical power | D75: =D74/D52 -> 13.41162492 | E75: kW | G75: Log mean temp. difference | I75: =(I73-I74)/LN(I73/I74) -> 61.61333587 | J75: K
D76: =D75*h_per_yr -> 117485.8343 | E76: kW-h/yr | G76: Heat transfer coefficient | I76: 0.06 | J76: kW/(m2-K)
G77: Fouling factor | I77: 0.9
G78: Heat transfer area | I78: =I66/I75/I76/I77 -> 7.757116393 | J78: m2

Sheet Equipment costs
A1: Equipment purchased cost estimation
B2: This page uses equipment sizing data to estimate equipment purchased cost based on known references.
E4: Total equipment purchased cost | H4: =SUM(E26:H26) -> 398610.438
E5: All capacities within acceptable range | H5: =AND(E17:H17) -> TRUE
E7: Reactor | F7: Compressor | G7: Heat exchanger | H7: Separation vessel
B8: Capacity parameter | E8: ='Equipment sizing'!E5 -> Volume | F8: ='Equipment sizing'!F5 -> Power | G8: ='Equipment sizing'!G5 -> Area | H8: ='Equipment sizing'!H5 -> Volume
B9: Capacity units | E9: ='Equipment sizing'!E6 -> m3 | F9: ='Equipment sizing'!F6 -> kW | G9: ='Equipment sizing'!G6 -> m2 | H9: ='Equipment sizing'!H6 -> m3
B10: Capacity | E10: ='Equipment sizing'!E7 -> 23.84411122 | F10: ='Equipment sizing'!F7 -> 13.41162492 | G10: ='Equipment sizing'!G7 -> 7.757116393 | H10: ='Equipment sizing'!H7 -> 1.263251085
B11: MOC | E11: Ni | F11: SS316 | G11: SS316 | H11: SS316
B13: Scaling exponent | E13: 0.72 | F13: 0.65 | G13: 0.65 | H13: 0.65
B14: Reference capacity | E14: 10 | F14: 10 | G14: 5 | H14: 1
B15: Min allowable capacity for correlation | E15: 2 | F15: 2 | G15: 1 | H15: 0.5
B16: Max allowable capacity for correlation | E16: 50 | F16: 60 | G16: 50 | H16: 50
B17: Capacity within allowable range | E17: =AND(E10>E15,E10<E16) -> TRUE | F17: =AND(F10>F15,F10<F16) -> TRUE | G17: =AND(G10>G15,G10<G16) -> TRUE | H17: =AND(H10>H15,H10<H16) -> TRUE
B18: Reference purchased cost | E18: 125000 | F18: 46000 | G18: 15200 | H18: 22000
B19: Reference source | E19: quote | F19: previous plant | G19: previous plant | H19: previous plant
B20: Scaled purchased cost in reference year | E20: =E18*(E10/E14)^E13 -> 233681.5545 | F20: =F18*(F10/F14)^F13 -> 55669.93844 | G20: =G18*(G10/G14)^G13 -> 20221.72897 | H20: =H18*(H10/H14)^H13 -> 25608.90287
B22: Reference year | E22: 2010 | F22: 2010 | G22: 2010 | H22: 2010
B23: Estimate year | E23: 2015 | F23: 2015 | G23: 2015 | H23: 2015
B24: CE plant cost index in reference year | E24: 468.2 | F24: 468.2 | G24: 468.2 | H24: 468.2
B25: CE plant cost index in estimate year | E25: 556.8 | F25: 556.8 | G25: 556.8 | H25: 556.8
B26: Scaled purchased cost in estimate year | E26: =E20*(E25/E24) -> 277902.3698 | F26: =F20*(F25/F24) -> 66204.65981 | G26: =G20*(G25/G24) -> 24048.39532 | H26: =H20*(H25/H24) -> 30455.01306
B28: Note: References costs have been adjusted for demonstration purposes and are not necessarily realistic.

Sheet CapEx
A1: Fixed and total capital cost estimation
B2: This page estimates fixed and total capital investment by applying multiplication factors to equipment purchased cost.
B5: Fixed capital | D5: Cost | F5: Total capital | H5: Cost
B6: Direct costs | D6: =F32 -> 1179886.897 | F6: Fixed capital | H6: =Fixed_Capital -> 2135595.283
B7: Indirect costs | D7: =F41 -> 955708.3863 | F7: Working capital | H7: =F47 -> 320339.2924
B8: Total | D8: =SUM(D6:D7) -> 2135595.283 | F8: Total | H8: =SUM(H6:H7) -> 2455934.575
A20: Capital cost component settings and calculations
B23: Direct costs | D23: Cost relative to Equipment Purchase | F23: Cost
B24: Equipment purchase | D24: - | E24: - | F24: =Equipment_Purchase_Cost -> 398610.438
B25: Installation | D25: 0.39 | E25: 25-55% typical | F25: =$F$24*D25 -> 155458.0708
B26: Instrumentation & controls | D26: 0.26 | E26: 8-50% typical | F26: 103638.7139
B27: Piping, installed | D27: 0.31 | E27: 10-80% typical | F27: 123569.2358
B28: Electrical systems, installed | D28: 0.1 | E28: 10-40% typical | F28: 39861.0438
B29: Buildings (including services) | D29: 0.29 | E29: 10-70% typical | F29: 115597.027
B30: Service facilities & yard improvements | D30: 0.55 | E30: 40-100% typical | F30: 219235.7409
B31: Land | D31: 0.06 | E31: 4-8% typical | F31: 23916.62628
B32: Total direct costs | F32: =SUM(F24:F31) -> 1179886.897
B36: Indirect costs | D36: Cost relative to Total Direct Costs | F36: Cost
B37: Engineering and supervision | D37: 0.33 | E37: 5-20% typical | F37: =D37*$F$32 -> 389362.6759
B38: Legal expenses | D38: 0.03 | E38: 1-5% typical | F38: =D38*$F$32 -> 35396.6069
B39: Construction expense & contractor's fee | D39: 0.2 | E39: 10-30% typical | F39: =D39*$F$32 -> 235977.3793
B40: Contingency | D40: 0.25 | E40: 5-25% typical | F40: =D40*$F$32 -> 294971.7242
B41: Total indirect costs | F41: =SUM(F37:F40) -> 955708.3863
B45: Total capital | D45: Cost relative to Fixed Capital | F45: Cost
B46: Fixed capital | D46: - | E46: - | F46: =F41+F32 -> 2135595.283
B47: Working capital | D47: 0.15 | E47: 10-20% typical | F47: =F46*D47 -> 320339.2924
B48: Total capital | F48: =F46+F47 -> 2455934.575

Sheet OpEx & Rev
A1: Operating cost and revenue estimation
B2: This page estimates plant operating costs and revenue based on the stream table, equipment list, and user input.
B5: 1. Variable costs | D5: Estimated as… | G5: $/yr | I5: Results | L5: $/yr | M5: $/kg product
B6: a. Raw materials | D6: - | G6: =F56 -> 564531.4451 | I6: Revenue | L6: =F47 -> 3500000 | M6: =L6/Production_Rate/10^3 -> 7
B7: b. Waste treatment | D7: - | G7: =N65 -> 0 | I7: OpEx w/ depreciation | L7: =SUM(G6:G13,G19,G20,G24)/(1-SUM(D14,D25,D26)) -> 2004696.443 | M7: =L7/Production_Rate/10^3 -> 4.009392886
B8: c. Utilities | D8: - | G8: =N47 -> 13247.96655 | I8: OpEx w/out depreciation | L8: =OpEx_with_depr-G18 -> 1791136.915 | M8: =L8/Production_Rate/10^3 -> 3.58227383
B9: d. Operating labor | D9: - | G9: =N56 -> 432000
B10: e. Supervisory & clerical labor | D10: 0.18 | E10: of operating labor | G10: =D10*G9 -> 77760
B11: f. Maintenance & repairs | D11: 0.06 | E11: of fixed capital | G11: =D11*Fixed_Capital -> 128135.717
B12: g. Operating supplies | D12: 0.01 | E12: of fixed capital | G12: =D12*Fixed_Capital -> 21355.95283
B13: h. Laboratory Charges | D13: 0.15 | E13: of operating labor | G13: =D13*G9 -> 64800 | J13: Data for graphing
B14: i. Patents & royalties | D14: 0.03 | E14: of total operating cost | G14: =L7*D14 -> 60140.89329 | J14: Raw materials | L14: =G6 -> 564531.4451
B15: Total variables costs | G15: =SUM(G6:G14) -> 1361971.975 | J15: Waste treatment | L15: =G7 -> 0
J16: Utilities | L16: =G8 -> 13247.96655
B17: 2. Fixed costs | D17: Estimated as… | G17: $/yr | J17: Operating labor | L17: =G9 -> 432000
B18: a. Depreciation | D18: 0.1 | E18: of fixed capital | G18: =D18*Fixed_Capital -> 213559.5283 | J18: Other variable costs | L18: =G15-SUM(L14:L17) -> 352192.5631
B19: b. Local taxes & insurance | D19: 0.03 | E19: of fixed capital | G19: =D19*Fixed_Capital -> 64067.85849 | J19: Depreciation | L19: =G18 -> 213559.5283
B20: c. Plant overhead | D20: 0.6 | E20: of (Line 1d + 1e + 1f) | G20: =D20*SUM(G9:G11) -> 382737.4302 | J20: Other fixed costs | L20: =G21 -> 660364.817
B21: Total Fixed costs | G21: =SUM(G18:G20) -> 660364.817 | J21: General costs | L21: =G27 -> 195919.1797
B23: 3. General costs | D23: Estimated as… | G23: $/yr
B24: a. Administrative | D24: 0.15 | E24: of (Line 1d + 1e + 1f) | G24: =D24*SUM(G9:G11) -> 95684.35755
B25: b. Distribution & marketing | D25: 0 | E25: of total operating cost | G25: =L7*D25 -> 0
B26: c. Research & development | D26: 0.05 | E26: of total operating cost | G26: =L7*D26 -> 100234.8222
B27: Total general costs | G27: =SUM(G24:G26) -> 195919.1797
A40: Operating cost component settings & calculations
B43: Products | D43: $/t | E43: t/yr | F43: $/yr | H43: Utilities | N43: $/yr
B44: Polymer | D44: =Dashboard!E19 -> 7000 | E44: ='Process model'!I6 -> 500 | F44: =E44*D44 -> 3500000 | H44: Electrical power | J44: =Dashboard!E23 -> 0.11 | K44: /kW-h | L44: ='Equipment sizing'!F9 -> 117485.8343 | M44: kW-h/yr | N44: =L44*J44 -> 12923.44177
H45: Cooling water | J45: 0.025 | K45: /MT | L45: ='Equipment sizing'!G10 -> 12980.99124 | M45: t/yr | N45: =L45*J45 -> 324.524781
B47: Total | F47: =SUM(F44:F46) -> 3500000 | H47: Total | N47: =SUM(N44:N46) -> 13247.96655
B52: Raw materials | D52: $/t | E52: t/yr | F52: $/yr | H52: Labor | N52: $/yr
B53: Catalyst | D53: =Dashboard!E20 -> 1150 | E53: ='Process model'!I7 -> 0.5370526316 | F53: =E53*D53 -> 617.6105264 | H53: Operations | J53: 6 | K53: FTE | L53: =Dashboard!E24 -> 72000 | M53: /(FTE/yr) | N53: =L53*J53 -> 432000
B54: Monomer | D54: =Dashboard!E21 -> 1050 | E54: ='Process model'!I8 -> 537.0526316 | F54: =E54*D54 -> 563905.2632
B55: Hydrogen | D55: =Dashboard!E22 -> 2100 | E55: ='Process model'!I9 -> 0.0040816 | F55: =E55*D55 -> 8.571360001
B56: Total | F56: =SUM(F53:F55) -> 564531.4451 | H56: Total | N56: =SUM(N53:N55) -> 432000
H61: Waste | N61: $/yr
H62: [none listed]
H65: Total | N65: =SUM(N62:N64) -> 0

Sheet Cash flow
A1: Cash flow analysis
B2: This page performs a discounted cash flow analysis.
B5: User input | F5: Profitability metrics
B6: Income tax rate | D6: 0.4 | F6: IRR | H6: =IRR(E36:N36) -> 0.362245235
B7: Discount rate | D7: 0.1 | F7: NPV | H7: =(NPV(Discount_Rate,F36:N36)+E36) -> 3.55756672 | I7: MM USD
B8: Salvage value | D8: 0.05 | E8: of FCI | F8: Simple payback | H8: =F42 -> 2.756283334 | I8: years
F9: Discounted payback | H9: =J42 -> 2.323043408 | I9: years
D15: Year | E15: 1 | F15: 2 | G15: 3 | H15: 4 | I15: 5 | J15: 6 | K15: 7 | L15: 8 | M15: 9 | N15: 10
B17: Capital outlay | D17: MM USD | E17: =SUM(E19,E21) -> -2.455934575 | F17: =SUM(F19,F21) -> 0 | G17: 0 | H17: 0 | I17: 0 | J17: 0 | K17: 0 | L17: 0 | M17: 0 | N17: 0.4271190566
B18: Fixed capital | D18: - | E18: 1 | N18: =-SalvagePercent -> -0.05
D19: MM USD | E19: =-E18*Fixed_Capital/10^6 -> -2.135595283 | F19: 0 | G19: 0 | H19: 0 | I19: 0 | J19: 0 | K19: 0 | L19: 0 | M19: 0 | N19: 0.1067797641
B20: Working capital | D20: - | E20: 1 | N20: -1
D21: MM USD | E21: =-E20*Working_Capital/10^6 -> -0.3203392924 | F21: 0 | G21: 0 | H21: 0 | I21: 0 | J21: 0 | K21: 0 | L21: 0 | M21: 0 | N21: 0.3203392924
B24: Gross profit | D24: MM USD | E24: =E26+E27 -> 0 | F24: =F26+F27 -> 0.8544315426 | G24: 1.708863085 | H24: 1.708863085 | I24: 1.708863085 | J24: 1.708863085 | K24: 1.708863085 | L24: 1.708863085 | M24: 1.708863085 | N24: 1.708863085
B25: Operating rate | D25: - | F25: 0.5 | G25: 1 | H25: 1 | I25: 1 | J25: 1 | K25: 1 | L25: 1 | M25: 1 | N25: 1
B26: Revenue | D26: MM USD | E26: =E25*Revenue/10^6 -> 0 | F26: 1.75 | G26: =G25*Revenue/10^6 -> 3.5 | H26: 3.5 | I26: 3.5 | J26: 3.5 | K26: 3.5 | L26: 3.5 | M26: =M25*Revenue/10^6 -> 3.5 | N26: 3.5
B27: Operating costs | D27: MM USD | E27: =-E25*OpEx_without_depr/10^6 -> 0 | F27: -0.8955684574 | G27: -1.791136915 | H27: -1.791136915 | I27: -1.791136915 | J27: -1.791136915 | K27: -1.791136915 | L27: -1.791136915 | M27: -1.791136915 | N27: -1.791136915
B30: Net profit | D30: MM USD | E30: =E24-E33*Income_Tax_Rate -> 0 | F30: 0.5126589256 | G30: 1.106470472 | H30: 1.106470472 | I30: 1.106470472 | J30: 1.106470472 | K30: 1.106470472 | L30: 1.106470472 | M30: 1.106470472 | N30: 1.106470472
B31: Depreciation | D31: Schedule | G31: 0.1 | H31: 0.1 | I31: 0.1 | J31: 0.1 | K31: 0.1 | L31: 0.1 | M31: 0.1 | N31: 0.1
D32: MM USD | E32: =E31*Fixed_Capital*(1-SalvagePercent)/10^6 -> 0 | F32: 0 | G32: 0.2028815519 | H32: 0.2028815519 | I32: 0.2028815519 | J32: 0.2028815519 | K32: 0.2028815519 | L32: 0.2028815519 | M32: 0.2028815519 | N32: 0.2028815519
B33: Taxable income | D33: MM USD | E33: =IF(E24-E32>0,E24-E32,0) -> 0 | F33: =IF(F24-F32>0,F24-F32,0) -> 0.8544315426 | G33: =IF(G24-G32>0,G24-G32,0) -> 1.505981533 | H33: =IF(H24-H32>0,H24-H32,0) -> 1.505981533 | I33: 1.505981533 | J33: 1.505981533 | K33: 1.505981533 | L33: 1.505981533 | M33: 1.505981533 | N33: 1.505981533
B36: Cash flow | D36: MM USD | E36: =E30+E17 -> -2.455934575 | F36: =F30+F17 -> 0.5126589256 | G36: 1.106470472 | H36: 1.106470472 | I36: 1.106470472 | J36: 1.106470472 | K36: 1.106470472 | L36: 1.106470472 | M36: 1.106470472 | N36: 1.533589528
B37: Cumulative | D37: MM USD | E37: =E36 -> -2.455934575 | F37: =F36+E37 -> -1.94327565 | G37: =G36+F37 -> -0.8368051779 | H37: 0.269665294 | I37: 1.376135766 | J37: 2.482606238 | K37: 3.58907671 | L37: 4.695547181 | M37: 5.802017653 | N37: 7.335607182
B38: Discounted cash flow | D38: MM USD | E38: =E36/(1+Discount_Rate)^(E15-1) -> -2.455934575 | F38: =F36/(1+Discount_Rate)^(F15-1) -> 0.4660535687 | G38: 0.9144384065 | H38: 0.8313076423 | I38: 0.7557342202 | J38: 0.6870311093 | K38: 0.6245737357 | L38: 0.5677943052 | M38: 0.5161766411 | N38: 0.6503916666
B39: Cum. disc. cash flow | D39: MM USD | E39: =E38 -> -2.455934575 | F39: =F38+E39 -> -1.989881007 | G39: =G38+F39 -> -1.0754426 | H39: -0.2441349578 | I39: 0.5115992624 | J39: 1.198630372 | K39: 1.823204107 | L39: 2.390998413 | M39: 2.907175054 | N39: 3.55756672
B42: Payback calculation | E42: Simple payback | F42: =SUM(F43:N43) -> 2.756283334 | G42: years | I42: Discounted payback | J42: =SUM(F44:N44) -> 2.323043408 | K42: years
B43: Simple payback | E43: - | F43: =IF(AND(E37<0,F37>0),INTERCEPT($F$15:$G$15,E37:F37),0) -> 0 | G43: =IF(AND(F37<0,G37>0),INTERCEPT($F$15:$G$15,F37:G37),0) -> 0 | H43: =IF(AND(G37<0,H37>0),INTERCEPT($F$15:$G$15,G37:H37),0) -> 2.756283334 | I43: 0 | J43: 0 | K43: 0 | L43: 0 | M43: 0 | N43: 0
B44: Discounted payback | E44: - | F44: =IF(AND(E39<0,F39>0),INTERCEPT($F$15:$G$15,E39:F39),0) -> 0 | G44: =IF(AND(F39<0,G39>0),INTERCEPT($F$15:$G$15,F39:G39),0) -> 0 | H44: =IF(AND(G39<0,H39>0),INTERCEPT($F$15:$G$15,G39:H39),0) -> 0 | I44: 2.323043408 | J44: 0 | K44: 0 | L44: 0 | M44: 0 | N44: 0

Sheet Constants
A1: Constants & misc.
B2: This page contains constants that are used throughout the model.
B5: Conversion factors | F5: Ambient conditions | K5: Constants
B6: Mass | C6: 1000 | D6: kg/t | F6: Temperature | H6: 298 | I6: K | K6: Ideal gas constant | M6: 0.083144321 | N6: m3-bar/(kmol-K)
B7: Time | C7: 31536000 | D7: s/yr | F7: Pressure | H7: 1 | I7: bar
C8: 60 | D8: s/min
C9: 8760 | D9: h/yr
B10: Pressure | C10: 100 | D10: kPa/bar
